bitfinex/quotes_SOLUSD_20250111
["timestamp","ask_amount","ask_price","bid_price","bid_amount"]
[1736576765688,23.776884,187.17,187.06,1.5322]
[1736576765689,23.776884,187.17,187.06,139.0322]
[1736576766063,2.6715,187.16,187.06,139.0322]
[1736576766780,23.776884,187.15,187.06,139.0322]
[1736576767288,23.776884,187.15,187.06,137.5]
[1736576768184,23.776884,187.15,187.02,145.4365]
[1736576768185,20.0,187.12,187.02,145.4365]
[1736576769281,20.0,187.12,187.03,3.72438509]
[1736576770265,20.0,187.12,187.03,141.22438509]
[1736576770871,20.0,187.12,187.03,137.5]
[1736576774989,23.776884,187.11,186.99,137.5]
[1736576775861,23.776884,187.11,187.0,0.80186901]
[1736576779367,23.776884,187.11,187.0,138.30186901]
[1736576779690,23.776884,187.11,187.0,137.5]
[1736576782291,22.1595199,187.13,187.01,0.80185487]
[1736576782469,20.0,187.13,187.01,0.80185487]
[1736576785292,23.776884,187.12,187.01,138.30185487]
[1736576785495,23.776884,187.12,187.01,137.5]
[1736576796303,23.776884,187.12,187.02,3.71353616]
[1736576797404,4.81388999,187.14,187.02,3.71353616]
[1736576797405,23.776884,187.1,187.02,3.71353616]
[1736576797700,23.776884,187.1,186.98,137.5]
[1736576798696,23.776884,187.1,186.99,3.71739432]
[1736576799880,23.776884,187.1,186.99,141.21739432]
[1736576800293,23.776884,187.1,187.0,3.71739432]
[1736576801775,23.776884,187.1,187.01,3.71739432]
[1736576803505,23.776884,187.1,186.99,137.5]
[1736576810123,7.9624,187.11,187.02,20.0]
[1736576810323,7.9624,187.11,187.03,0.80171299]
[1736576810532,8.1619,187.15,187.03,138.30171299]
[1736576810704,23.776884,187.14,187.03,137.5]
[1736576811751,23.776884,187.14,187.04,3.72931952]
[1736576812725,23.776884,187.14,187.03,137.5]
[1736576814613,23.776884,187.14,187.04,0.80169099]
[1736576815300,23.776884,187.14,187.04,138.30169099]
[1736576815510,23.776884,187.14,187.04,137.5]
[1736576823826,8.1619,187.15,187.05,0.80168132]
[1736576824218,8.1619,187.15,187.05,138.30168132]
[1736576824401,8.1619,187.15,187.05,137.5]
[1736576824605,8.1619,187.15,187.06,0.80153615]
[1736576830321,8.1619,187.15,187.06,138.30153615]
[1736576830510,8.1619,187.15,187.06,137.5]
[1736576830711,6.6037,187.15,187.07,138.30143571]
[1736576830925,6.6037,187.15,187.07,137.5]
[1736576831129,6.6037,187.15,187.08,0.80144451]
[1736576831336,7.8141,187.19,187.08,138.30144451]
[1736576831639,7.8141,187.19,187.08,137.5]
[1736576831831,7.8141,187.19,187.09,0.80145743]
[1736576835510,7.8141,187.19,187.09,138.30145743]
[1736576835711,7.8141,187.19,187.09,137.5]
[1736576835941,7.8141,187.19,187.1,0.80135134]
[1736576836543,7.8141,187.19,187.1,138.30135134]
[1736576836769,7.8141,187.19,187.1,137.5]
[1736576836917,7.8141,187.19,187.11,0.80132416]
[1736576840758,7.8141,187.19,187.1,137.5]
[1736576842232,7.8141,187.19,187.06,137.5]
[1736576842528,7.8141,187.19,187.07,0.80152001]
[1736576844332,23.776884,187.18,187.07,0.80152001]
[1736576844537,23.776884,187.18,187.06,137.5]
[1736576846453,23.776884,187.18,187.07,0.80158379]
[1736576846838,23.776884,187.18,187.06,137.5]
[1736576847331,28.59228294,187.18,187.06,137.5]
[1736576847522,23.776884,187.16,187.06,137.5]
[1736576851246,23.776884,187.16,187.01,139.1008]
[1736576851442,23.776884,187.16,187.02,0.80168956]
[1736576852359,23.776884,187.16,187.02,4.52052181]
[1736576854083,23.776884,187.16,187.03,3.71883225]
[1736576854380,23.776884,187.16,187.04,0.80168739]
[1736576855967,23.776884,187.16,187.02,0.80167844]
[1736576857272,23.776884,187.16,187.02,138.30167844]
[1736576857463,23.776884,187.16,187.02,137.5]
[1736576858972,23.776884,187.16,187.03,4.52168351]
[1736576860374,23.776884,187.16,187.04,3.7200304]
[1736576860577,23.776884,187.16,187.05,138.30161086]
[1736576860755,23.776884,187.16,187.05,137.5]
[1736576861676,23.776884,187.16,187.06,3.7200304]
[1736576861973,8.2165,187.17,187.06,4.52164075]
[1736576862950,8.2165,187.17,187.07,3.7200304]
[1736576864380,8.2165,187.17,187.06,0.80161035]
[1736576866177,8.2165,187.17,187.06,138.30161035]
[1736576866368,8.2165,187.17,187.06,137.5]
[1736576867455,8.2165,187.17,187.07,3.72144204]
[1736576869153,8.2165,187.17,187.06,137.5]
[1736576872581,8.2165,187.17,187.07,3.7215158]
[1736576873281,8.2165,187.17,187.08,138.30157207]
[1736576873484,8.2165,187.17,187.08,137.5]
[1736576873868,8.2165,187.17,187.09,138.30146695]
[1736576874072,8.2165,187.17,187.09,137.5]
[1736576874279,8.2165,187.17,187.09,141.2215158]
[1736576875887,8.2165,187.17,187.1,3.7215158]
[1736576877903,8.2165,187.17,187.09,137.5]
[1736576880533,8.0351,187.22,187.11,20.0]
[1736576880704,8.0351,187.22,187.12,0.8012339]
[1736576881524,23.776884,187.21,187.11,157.5]
[1736576882903,23.776884,187.21,187.12,3.71458391]
[1736576884210,23.776884,187.21,187.08,137.5]
[1736576884402,23.776884,187.21,187.09,0.80143638]
[1736576885420,23.776884,187.21,187.1,3.71746158]
[1736576886580,8.0351,187.22,187.11,20.80141412]
[1736576887380,8.0351,187.22,187.12,3.71746158]
[1736576887586,8.0351,187.22,187.13,0.80125118]
[1736576889899,8.0351,187.22,187.12,0.80125045]
[1736576890201,8.0351,187.22,187.11,158.30133841]
[1736576890395,8.0351,187.22,187.11,157.5]
[1736576891926,8.0351,187.22,187.12,0.80133875]
[1736576892342,8.0351,187.22,187.12,4.51702004]
[1736576893920,8.0351,187.22,187.12,0.80133875]
[1736576896127,8.0351,187.22,187.12,138.30133875]
[1736576896424,8.0351,187.22,187.13,3.71490951]
[1736576897328,8.0351,187.22,187.13,4.5162308]
[1736576897624,8.0351,187.22,187.13,0.80132129]
[1736576897808,8.0351,187.22,187.12,137.5]
[1736576900628,7.5351,187.22,187.12,137.5]
[1736576901824,7.5351,187.22,187.13,0.80131231]
[1736576902187,7.5351,187.22,187.13,138.30131231]
[1736576902401,7.5351,187.22,187.13,137.5]
[1736576909016,7.5351,187.22,187.14,0.80127321]
[1736576909222,7.5351,187.22,187.14,138.30127321]
[1736576909390,6.3974,187.22,187.14,137.5]
[1736576909713,6.3974,187.22,187.15,138.30114268]
[1736576909886,7.9323,187.26,187.15,137.5]
[1736576910088,7.9323,187.26,187.16,0.80114263]
[1736576910615,7.9323,187.26,187.16,4.51787008]
[1736576911914,7.9323,187.26,187.16,142.01787008]
[1736576912101,7.9323,187.26,187.16,141.21672745]
[1736576912429,7.9323,187.26,187.17,0.80107227]
[1736576913513,7.9323,187.26,187.19,20.0]
[1736576913714,1.3243,187.31,187.2,138.30099484]
[1736576914026,1.3243,187.31,187.2,137.5]
[1736576915096,1.3243,187.31,187.21,0.80085496]
[1736576917110,1.3243,187.31,187.21,138.30085496]
[1736576917288,1.3243,187.31,187.21,137.5]
[1736576917493,1.3243,187.31,187.22,0.80086075]
[1736576922000,1.3243,187.31,187.22,138.30086075]
[1736576922318,1.3243,187.31,187.22,137.5]
[1736576922501,1.3243,187.31,187.23,0.80075647]
[1736576926222,1.3243,187.31,187.23,138.30075647]
[1736576926527,1.3243,187.31,187.23,137.5]
[1736576927622,1.3243,187.31,187.24,0.80084666]
[1736576928621,1.3243,187.31,187.23,137.5]
[1736576929928,6.5009,187.29,187.19,137.5]
[1736576930116,23.776884,187.26,187.14,139.1474]
[1736576930317,23.776884,187.24,187.13,145.83092555]
[1736576930522,23.776884,187.24,187.13,137.5]
[1736576930723,23.776884,187.24,187.15,3.69926546]
[1736576931235,23.776884,187.22,187.15,3.69926546]
[1736576932233,23.776884,187.22,187.09,137.5]
[1736576932234,23.776884,187.22,187.1,0.80143188]
[1736576938047,23.776884,187.22,187.1,138.30143188]
[1736576938224,23.776884,187.22,187.1,137.5]
[1736576938426,23.776884,187.22,187.11,0.80131007]
[1736576939046,1.3243,187.23,187.11,0.80131007]
[1736576939359,43.776884,187.22,187.11,0.80131007]
[1736576939725,23.776884,187.21,187.11,0.80131007]
[1736576940047,6.5009,187.2,187.1,137.5]
[1736576940448,6.5009,187.2,187.11,0.80141802]
[1736576944053,6.5009,187.2,187.11,138.30141802]
[1736576944252,6.5009,187.2,187.11,137.5]
[1736576944552,6.5009,187.2,187.12,0.80133937]
[1736576950341,6.5009,187.2,187.11,137.5]
[1736576955364,6.436612,187.2,187.11,137.5]
[1736576955572,6.436612,187.2,187.12,0.80137658]
[1736576956472,6.436612,187.2,187.1,20.0]
[1736576956473,6.436612,187.2,187.11,0.80138341]
[1736576959475,1.3243,187.23,187.11,0.80138341]
[1736576959667,1.3243,187.23,187.14,157.5]
[1736576959870,1.3243,187.23,187.15,0.80114704]
[1736576963279,0.06456167,187.36,187.28,20.0]
[1736576963580,0.06456167,187.36,187.29,0.80055377]
[1736576967993,0.06456167,187.36,187.29,138.30055377]
[1736576968188,0.06456167,187.36,187.29,137.5]
[1736576969691,0.06456167,187.36,187.3,0.80057077]
[1736576970393,0.06456167,187.36,187.28,24.58]
[1736576970595,0.06456167,187.36,187.26,0.80062589]
[1736576970781,1.3243,187.35,187.26,0.80062589]
[1736576976985,1.3243,187.35,187.26,138.30062589]
[1736576977192,1.3243,187.35,187.26,137.5]
[1736576977375,1.3243,187.35,187.27,0.80066943]
[1736576983007,1.3243,187.35,187.27,138.30066943]
[1736576983192,1.3243,187.35,187.27,137.5]
[1736576983394,1.3243,187.35,187.28,0.80061672]
[1736576984610,1.3243,187.35,187.27,137.5]
[1736576984611,23.776884,187.34,187.27,137.5]
[1736576984787,23.776884,187.34,187.21,137.5]
[1736576985112,23.776884,187.34,187.22,0.80084565]
[1736576985609,23.776884,187.34,187.24,20.0]
[1736576985806,23.776884,187.34,187.25,0.80081087]
[1736576987217,6.3313,187.33,187.25,0.80081087]
[1736577001520,6.3313,187.33,187.24,20.0]
[1736577003944,6.3313,187.33,187.24,20.80083252]
[1736577004125,6.3313,187.33,187.24,20.0]
[1736577004328,6.3313,187.33,187.19,143.7014]
[1736577004329,23.776884,187.32,187.19,143.7014]
[1736577004543,23.776884,187.32,187.2,0.80096573]
[1736577009049,23.776884,187.32,187.21,3.7087636]
[1736577009829,23.776884,187.32,187.22,0.80095725]
[1736577010025,6.3313,187.33,187.22,0.80095725]
[1736577010336,6.3313,187.33,187.22,20.80095725]
[1736577011433,6.3313,187.33,187.23,3.70836026]
[1736577011632,6.3313,187.33,187.24,0.80082883]
[1736577011838,6.3313,187.33,187.23,4.50919954]
[1736577012555,23.776884,187.32,187.23,3.70836026]
[1736577013052,1.3243,187.31,187.2,0.80087515]
[1736577013946,1.3243,187.31,187.21,3.70979722]
[1736577014282,1.3243,187.31,187.22,0.80092581]
[1736577015961,1.3243,187.31,187.2,138.3009633]
[1736577016265,1.3243,187.31,187.2,137.5]
[1736577017175,1.3243,187.31,187.21,0.80096835]
[1736577017378,23.776884,187.3,187.21,0.80096835]
[1736577017556,23.776884,187.28,187.18,0.80104073]
[1736577017757,23.776884,187.28,187.15,147.37972555]
[1736577017958,23.776884,187.28,187.18,20.0]
[1736577021266,1.3243,187.27,187.18,20.0]
[1736577021657,23.776884,187.26,187.16,0.80112669]
[1736577021843,25.101184,187.21,187.11,8.33092555]
[1736577022540,25.101184,187.21,187.09,145.83092555]
[1736577023248,25.101184,187.21,187.09,137.5]
[1736577024037,25.101184,187.21,187.1,0.8014412]
[1736577025560,25.101184,187.21,187.09,137.5]
[1736577026665,25.101184,187.21,187.1,0.8014491]
[1736577028052,25.101184,187.21,187.09,0.80141394]
[1736577030469,25.101184,187.21,187.08,20.80144621]
[1736577032965,1.3243,187.21,187.1,20.0]
[1736577033170,1.3243,187.21,187.11,0.8012848]
[1736577036871,1.3243,187.21,187.11,138.3012848]
[1736577037172,1.3243,187.21,187.11,137.5]
[1736577040375,1.3243,187.21,187.12,0.80134452]
[1736577041571,23.776884,187.2,187.11,137.5]
[1736577042870,23.776884,187.2,187.08,20.0]
[1736577043171,23.776884,187.2,187.09,0.8014312]
[1736577043878,1.3243,187.21,187.09,0.8014312]
[1736577044052,1.3243,187.21,187.09,20.8014312]
[1736577045387,1.3243,187.21,187.09,171.6638312]
[1736577045689,1.3243,187.21,187.09,170.8624]
[1736577045888,1.3243,187.21,187.1,0.80122622]
[1736577047856,1.3243,187.21,187.11,3.69523886]
[1736577048058,1.3243,187.21,187.12,20.80126482]
[1736577048972,1.3243,187.21,187.12,158.30126482]
[1736577049171,1.3243,187.21,187.12,157.5]
[1736577050175,1.3243,187.21,187.13,0.80124531]
[1736577054284,23.776884,187.18,187.05,160.74442555]
[1736577054494,23.776884,187.18,187.06,0.80152824]
[1736577054986,23.776884,187.18,187.06,4.50559636]
[1736577055458,6.4812,187.19,187.06,4.50559636]
[1736577055459,6.4812,187.19,187.08,20.0]
[1736577055658,6.4812,187.19,187.09,0.80139505]
[1736577056067,6.4812,187.19,187.09,138.30139505]
[1736577056384,6.4812,187.19,187.09,137.5]
[1736577056581,6.4812,187.19,187.12,20.0]
[1736577056879,6.4812,187.19,187.13,0.80123126]
[1736577057279,6.4812,187.19,187.12,137.5]
[1736577057474,6.4812,187.19,187.06,150.8646]
[1736577057679,6.4812,187.19,187.07,0.80141565]
[1736577058691,1.3243,187.17,187.06,137.5]
[1736577058880,23.776884,187.16,187.06,137.5]
[1736577059073,23.776884,187.16,187.07,0.80159703]
[1736577060301,23.776884,187.16,187.08,3.7099639]
[1736577060801,1.3243,187.17,187.09,0.80158807]
[1736577061979,1.3243,187.17,187.08,0.80148755]
[1736577062574,1.3243,187.17,187.07,20.80149904]
[1736577063875,1.3243,187.17,187.07,158.30149904]
[1736577064076,1.3243,187.17,187.07,157.5]
[1736577064965,23.776884,187.16,187.04,137.5]
[1736577065164,23.776884,187.14,187.01,147.49612555]
[1736577065365,23.776884,187.14,187.04,20.0]
[1736577066371,23.776884,187.12,187.02,0.80170769]
[1736577067689,23.776884,187.1,187.01,137.5]
[1736577067879,23.776884,187.1,187.01,20.0]
[1736577068079,23.776884,187.1,186.99,0.80184738]
[1736577068279,23.776884,187.1,187.02,3.71744816]
[1736577068996,23.776884,187.08,187.02,3.71744816]
[1736577069979,6.189,187.07,187.02,3.71744816]
[1736577070183,23.776884,187.06,187.02,3.71744816]
[1736577070588,23.776884,187.06,186.95,0.80205113]
[1736577071580,23.776884,187.04,186.94,137.5]
[1736577073089,23.776884,187.04,186.95,0.8021105]
[1736577075985,23.776884,187.04,186.93,0.80208774]
[1736577078729,23.776884,187.02,186.93,0.80208774]
[1736577078912,29.898484,187.02,186.93,0.80208774]
[1736577082122,29.898484,187.02,186.9,0.80219029]
[1736577087807,29.898484,187.02,186.9,138.30219029]
[1736577088008,29.898484,187.02,186.9,137.5]
[1736577088009,32.571984,187.02,186.9,137.5]
[1736577093740,113.771984,187.02,186.87,220.2639]
[1736577094045,113.771984,187.02,186.88,0.80232734]
[1736577095023,23.776884,187.0,186.88,0.80232734]
[1736577099813,23.776884,187.0,186.88,82.00232734]
[1736577100244,23.776884,187.0,186.83,220.2494]
[1736577100245,1.3243,186.97,186.83,220.2494]
[1736577100429,23.776884,186.96,186.84,0.80247437]
[1736577101321,6.6494,186.95,186.84,0.80247437]
[1736577101728,23.776884,186.94,186.84,82.00247437]
[1736577102528,23.776884,186.92,186.84,81.2]
[1736577109449,23.776884,186.92,186.82,20.0]
[1736577109450,23.71258913,186.92,186.82,20.0]
[1736577110247,3.9991,186.93,186.83,0.80267218]
[1736577110422,3.9991,186.93,186.82,101.2]
[1736577110621,3.9991,186.93,186.82,81.2]
[1736577113047,3.9991,186.93,186.83,0.80261214]
[1736577113235,3.9991,186.93,186.82,81.2]
[1736577113441,3.9991,186.93,186.82,82.00253565]
[1736577114462,3.9991,186.93,186.82,81.2]
[1736577117459,23.776884,186.92,186.82,81.2]
[1736577118652,3.9991,186.93,186.82,81.2]
[1736577124051,1.3243,186.93,186.83,24.57949903]
[1736577124256,1.3243,186.93,186.86,20.0]
[1736577124440,6.6494,186.95,186.87,0.80236194]
[1736577124640,1.3243,186.98,186.87,219.50236194]
[1736577124836,1.3243,186.98,186.87,218.7]
[1736577125943,1.3243,186.98,186.88,0.80227247]
[1736577129746,1.3243,186.98,186.88,219.50227247]
[1736577130043,1.3243,186.98,186.89,23.776884]
[1736577130248,1.3243,186.98,186.9,0.80215416]
[1736577134861,2.6735,187.03,186.9,0.80215416]
[1736577134862,6.2778,187.02,186.93,20.0]
[1736577135044,6.2778,187.02,186.94,0.80201549]
[1736577139361,6.2778,187.02,186.93,218.7]
[1736577139562,23.776884,187.01,186.87,227.03092555]
[1736577139866,1.3243,187.0,186.88,0.80232811]
[1736577142365,1.3243,187.0,186.92,20.0]
[1736577142570,1.3243,187.0,186.93,0.80210665]
[1736577144072,1.3243,187.0,186.92,20.80217324]
[1736577150577,6.2778,187.02,186.92,20.80217324]
[1736577150758,6.2778,187.02,186.92,239.50217324]
[1736577150960,6.2778,187.02,186.92,238.7]
[1736577152661,6.2778,187.02,186.93,0.80206263]
[1736577153686,6.2778,187.02,186.93,82.00206263]
[1736577155359,6.2778,187.02,186.93,219.50206263]
[1736577155564,6.2778,187.02,186.93,218.7]
[1736577155763,6.2778,187.02,186.94,0.80198307]
[1736577159090,1.3243,187.04,186.94,219.50198307]
[1736577159281,1.3243,187.04,186.94,218.7]
[1736577159482,1.3243,187.04,186.95,0.8019392]
[1736577160292,1.3243,187.04,186.97,20.0]
[1736577160471,1.3243,187.04,186.98,0.80189583]
[1736577162489,6.4731,187.06,186.98,82.00189583]
[1736577165894,6.4731,187.06,186.98,219.50189583]
[1736577166100,1.3243,187.08,187.01,20.0]
[1736577166300,1.3243,187.08,187.02,0.80170239]
[1736577167494,6.3642,187.11,187.02,0.80170239]
[1736577170677,6.3642,187.11,187.01,81.2]
[1736577171578,9.0365,187.11,186.99,5.3218807]
[1736577171798,11.13760864,187.11,186.99,5.3218807]
[1736577174301,11.13760864,187.11,186.99,0.8018807]
[1736577179899,1.3243,187.1,186.99,0.8018807]
[1736577181909,1.3243,187.1,187.0,23.776884]
[1736577182210,1.3243,187.1,187.01,0.80169185]
[1736577183613,1.3243,187.1,187.01,82.00169185]
[1736577185317,1.3243,187.1,187.02,23.776884]
[1736577185609,1.3243,187.1,187.03,0.80161639]
[1736577186686,6.3642,187.11,187.04,23.776884]
[1736577186893,1.3243,187.15,187.05,82.00159101]
[1736577188209,1.3243,187.15,187.08,20.0]
[1736577188415,1.3243,187.15,187.09,0.80144249]
[1736577190717,1.3243,187.15,187.08,101.2]
[1736577190928,1.3243,187.15,187.08,81.2]
[1736577192714,1.3243,187.15,187.06,137.5]
[1736577194018,3.49702724,187.15,187.06,137.5]
[1736577194217,1.3243,187.15,187.06,137.5]
[1736577196524,20.0,187.13,187.06,137.5]
[1736577197323,6.14841905,187.15,187.06,137.5]
[1736577197521,3.47681905,187.15,187.06,137.5]
[1736577197721,1.3243,187.15,187.07,0.80155625]
[1736577203254,1.3243,187.19,187.08,161.276884]
[1736577203435,1.3243,187.19,187.09,0.80135925]
[1736577203633,1.3243,187.19,187.11,20.0]
[1736577203828,1.3243,187.19,187.12,0.8013254]
[1736577204463,1.3243,187.19,187.11,20.80133983]
[1736577208143,1.3243,187.19,187.08,137.5]
[1736577211639,1.3243,187.19,187.09,0.80148134]
[1736577213584,1.3243,187.19,187.09,82.00148134]
[1736577231366,1.3243,187.19,187.1,3.71892756]
[1736577231680,1.3243,187.19,187.11,0.80137349]
[1736577234605,1.3243,187.19,187.09,82.00137712]
[1736577236300,1.3243,187.19,187.09,81.2]
[1736577238401,6.2001,187.17,187.06,81.2]
[1736577239582,2.6715,187.16,187.06,81.2]
[1736577240775,2.6715,187.16,187.07,0.80166292]
[1736577240974,2.6715,187.16,187.06,81.2]
[1736577242888,2.6715,187.16,187.07,3.72057462]
[1736577244301,2.6715,187.16,187.06,81.2]
[1736577246377,1.3243,187.15,187.06,81.2]
[1736577247105,20.0,187.13,187.02,89.53092555]
[1736577247306,20.0,187.13,187.02,90.3326716]
[1736577247799,20.0,187.13,187.02,82.00174605]
[1736577248202,20.0,187.13,187.03,3.71901291]
[1736577249102,6.3582,187.12,187.03,3.71901291]
[1736577249302,1.3243,187.15,187.05,81.2]
[1736577249479,1.3243,187.15,187.06,82.00150938]
[1736577251713,1.3243,187.15,187.07,3.71403256]
[1736577251886,1.3243,187.15,187.08,0.80145906]
[1736577252507,1.3243,187.15,187.08,82.00145906]
[1736577254209,1.3243,187.15,187.08,81.2]
[1736577254412,3.996,187.15,187.08,81.2]
[1736577255610,1.3243,187.15,187.08,81.2]
[1736577256211,6.3582,187.17,187.09,0.80147866]
[1736577258206,6.3582,187.17,187.09,82.00147866]
[1736577259816,6.3582,187.17,187.1,84.91471219]
[1736577259987,6.3582,187.17,187.11,0.80137794]
[1736577263420,1.3243,187.19,187.13,20.0]
[1736577263606,1.3243,187.19,187.13,20.80128358]
[1736577264408,6.1995,187.21,187.13,102.00128358]
[1736577264609,6.1995,187.21,187.13,101.2]
[1736577265824,6.1995,187.21,187.14,0.80124326]
[1736577267327,6.1995,187.21,187.13,101.2]
[1736577268406,6.1995,187.21,187.14,0.80127981]
[1736577272246,6.1995,187.21,187.14,82.00127981]
[1736577276743,6.1995,187.21,187.14,81.2]
[1736577276918,6.1995,187.21,187.1,81.2]
[1736577277105,6.1995,187.21,187.1,82.00142036]
[1736577277809,6.1995,187.21,187.11,3.70300696]
[1736577279335,6.1995,187.21,187.1,82.00142036]
[1736577282039,23.776884,187.2,187.1,82.00142036]
[1736577282260,6.4271,187.17,187.05,218.7]
[1736577283950,9.0985,187.17,187.05,218.7]
[1736577284742,81.2,187.15,187.03,82.7437]
[1736577284933,1.3243,187.14,187.03,81.2]
[1736577287629,1.3243,187.14,187.04,0.80170992]
[1736577288428,1.3243,187.14,187.04,82.00170992]
[1736577290351,1.3243,187.14,187.04,81.2]
[1736577293245,1.3243,187.14,187.04,82.00168594]
[1736577294156,1.3243,187.14,187.04,81.2]
[1736577302281,6.5813,187.12,187.04,81.2]
[1736577310852,2.6722,187.11,187.04,81.2]
[1736577312352,83.8722,187.11,187.01,81.2]
[1736577320660,104.976884,187.09,186.99,81.2]
[1736577320865,104.976884,187.07,186.96,81.2]
[1736577321266,81.2,187.06,186.96,81.2]
[1736577322876,1.3243,187.04,186.96,81.2]
[1736577323276,20.0,187.03,186.96,81.2]
[1736577323592,6.26,187.02,186.89,220.3554]
[1736577323792,6.26,187.02,186.92,20.0]
[1736577323965,6.26,187.02,186.89,220.3554]
[1736577323966,23.776884,187.01,186.89,220.3554]
[1736577324572,104.976884,187.01,186.89,1.6554]
[1736577325090,107.650584,187.01,186.9,20.0]
[1736577325392,107.650584,187.01,186.9,23.71067152]
[1736577325574,20.0,186.98,186.9,3.71067152]
[1736577326789,20.0,186.98,186.87,48.96237386]
[1736577328297,20.0,186.98,186.88,3.70934743]
[1736577329091,20.0,186.98,186.89,0.80237195]
[1736577329394,81.2,187.01,186.9,20.0]
[1736577329604,81.2,187.01,186.91,0.8021713]
[1736577330369,6.26,187.02,186.91,0.8021713]
[1736577330370,6.26,187.02,186.91,219.5021713]
[1736577330575,6.26,187.02,186.91,218.7]
[1736577331890,6.26,187.02,186.92,0.80214204]
[1736577334187,6.26,187.02,186.91,218.7]
[1736577334390,6.26,187.02,186.92,0.80226589]
[1736577334790,6.26,187.02,186.91,218.7]
[1736577335416,23.776884,187.01,186.91,218.7]
[1736577336086,8.9335,187.02,186.91,218.7]
[1736577336407,8.9335,187.02,186.92,0.80226899]
[1736577338311,8.9335,187.02,186.91,81.2]
[1736577338999,23.776884,187.01,186.91,81.2]
[1736577339906,8.9335,187.02,186.91,82.00227621]
[1736577340820,6.26,187.02,186.91,82.00227621]
[1736577340992,6.26,187.02,186.94,20.0]
[1736577341190,6.26,187.02,186.94,20.80210357]
[1736577341503,6.26,187.02,186.94,20.0]
[1736577342411,6.26,187.02,186.95,0.80213869]
[1736577343597,6.26,187.02,186.94,101.2]
[1736577343805,6.26,187.02,186.94,81.2]
[1736577344693,6.26,187.02,186.94,82.00217723]
[1736577346205,6.26,187.02,186.94,81.2]
[1736577346396,6.26,187.02,186.95,0.80210746]
[1736577347389,1.3243,187.04,186.97,20.0]
[1736577347600,1.3243,187.04,186.98,0.80197158]
[1736577347906,6.2725,187.06,186.98,82.00197158]
[1736577354917,1.3243,187.09,186.98,82.00197158]
[1736577355123,1.3243,187.09,187.01,20.0]
[1736577355292,1.3243,187.09,187.02,0.80176088]
[1736577359834,6.2725,187.11,187.02,0.80176088]
[1736577360319,6.2725,187.11,187.02,82.00176088]
[1736577360817,6.2725,187.11,187.05,20.0]
[1736577361012,1.3243,187.13,187.05,102.0016426]
[1736577361319,1.3243,187.13,187.05,101.2]
[1736577361488,1.3243,187.13,187.06,0.80162317]
[1736577362331,6.0031,187.16,187.06,0.80162317]
[1736577363193,1.3243,187.18,187.09,20.0]
[1736577363392,1.3243,187.18,187.09,20.80144356]
[1736577364317,1.3243,187.18,187.09,20.0]
[1736577365102,1.3243,187.18,187.09,20.80147835]
[1736577365717,87.2031,187.2,187.09,20.80147835]
[1736577366304,87.2031,187.2,187.09,239.50147835]
[1736577366305,6.0031,187.2,187.09,239.50147835]
[1736577366512,6.0031,187.2,187.09,238.7]
[1736577367426,81.2,187.22,187.09,238.7]
[1736577367618,81.2,187.22,187.1,2.30519996]
[1736577368724,1.3243,187.23,187.13,101.2]
[1736577372144,1.3243,187.23,187.13,81.2]
[1736577372429,1.3243,187.23,187.1,220.2039]
[1736577372430,81.2,187.21,187.1,220.2039]
[1736577375137,81.2,187.2,187.1,82.7039]
[1736577377934,81.2,187.18,187.07,81.2]
[1736577379042,81.2,187.18,187.07,82.00155581]
[1736577384935,87.75,187.18,187.07,82.00155581]
[1736577385535,87.75,187.18,187.07,81.2]
[1736577387217,81.2,187.17,187.07,81.2]
[1736577393945,81.2,187.16,187.06,81.2]